bitfinex/quotes_SOLUSD_20250226
["timestamp","ask_amount","ask_price","bid_price","bid_amount"]
[1740584572385,1.67715572,140.29,140.28,78.78422314]
[1740584572795,1.67715572,140.32,140.3,0.56864628]
[1740584572984,1.0,140.33,140.32,20.56864628]
[1740584573293,0.67715572,140.33,140.32,236.76444259]
[1740584573499,1.67715572,140.33,140.32,234.98422314]
[1740584573704,1.67715572,140.33,140.32,235.26854628]
[1740584576195,0.063,140.34,140.33,0.56864628]
[1740584576391,1.063,140.34,140.33,235.41381098]
[1740584576571,1.063,140.34,140.33,233.91819514]
[1740584576771,1.74015572,140.34,140.33,215.26854628]
[1740584576973,0.063,140.34,140.33,215.26854628]
[1740584577182,1.063,140.34,140.33,233.91819514]
[1740584577793,0.063,140.34,140.33,233.91819514]
[1740584577991,1.74015572,140.34,140.33,215.26854628]
[1740584578191,0.063,140.34,140.33,215.33154628]
[1740584578388,0.063,140.34,140.33,241.10719514]
[1740584578575,1.063,140.34,140.33,241.10719514]
[1740584578771,0.063,140.34,140.33,241.10719514]
[1740584580004,0.063,140.34,140.33,262.58719514]
[1740584580190,0.063,140.34,140.33,262.91003942]
[1740584580388,0.063,140.35,140.34,41.02113942]
[1740584580597,0.063,140.35,140.34,42.51642637]
[1740584580783,0.063,140.35,140.34,20.71358209]
[1740584581483,0.063,140.35,140.34,28.16192637]
[1740584581882,0.063,140.35,140.34,49.64192637]
[1740584582294,0.063,140.35,140.34,51.70499451]
[1740584583400,0.063,140.35,140.34,218.25825509]
[1740584583401,0.74015572,140.35,140.34,218.25825509]
[1740584583592,1.74015572,140.35,140.34,216.76296814]
[1740584583790,1.74015572,140.35,140.34,214.6999]
[1740584583993,7.04948314,140.35,140.34,214.6999]
[1740584584189,7.04948314,140.35,140.34,78.4999]
[1740584584907,1.67715572,140.34,140.33,0.063]
[1740584585088,1.67715572,140.34,140.31,0.28432314]
[1740584585431,1.67715572,140.31,140.3,20.0]
[1740584585718,8.00965572,140.29,140.28,82.9]
[1740584585920,1.67715572,140.28,140.27,0.063]
[1740584586509,1.67715572,140.27,140.26,50.77366009]
[1740584586686,1.67715572,140.27,140.26,50.91582166]
[1740584587789,1.67715572,140.27,140.26,25.87516373]
[1740584588402,19.07202236,140.27,140.26,25.87516373]
[1740584589313,19.07202236,140.27,140.26,25.73300216]
[1740584590135,15.49477385,140.27,140.26,25.73300216]
[1740584593124,19.07289903,140.27,140.26,25.73300216]
[1740584594029,20.07289903,140.27,140.26,25.73300216]
[1740584594595,36.01630458,140.27,140.26,25.73300216]
[1740584595298,37.01630458,140.27,140.26,21.16320683]
[1740584595502,23.30480458,140.26,140.25,0.03]
[1740584595725,96.87071954,140.26,140.25,0.03]
[1740584595904,77.22107068,140.26,140.25,0.03]
[1740584596105,76.22107068,140.26,140.25,0.03]
[1740584596327,78.22107068,140.26,140.25,0.03]
[1740584596529,96.87071954,140.26,140.25,0.03]
[1740584596726,114.26646285,140.26,140.25,0.03]
[1740584597413,3.67715572,140.25,140.24,0.03]
[1740584598133,21.07289903,140.25,140.24,0.03]
[1740584599039,19.07289903,140.25,140.24,0.03]
[1740584599337,1.67715572,140.25,140.24,0.03]
[1740584599510,1.67715572,140.25,140.24,83.07216157]
[1740584599722,1.67715572,140.25,140.24,84.99562151]
[1740584601132,1.0,140.25,140.24,246.97587037]
[1740584601325,1.0,140.29,140.28,0.28432314]
[1740584601635,1.67715572,140.29,140.28,82.9]
[1740584602309,1.67715572,140.25,140.24,219.27216157]
[1740584602511,1.67715572,140.25,140.24,219.69864628]
[1740584603133,1.67715572,140.25,140.24,82.93]
[1740584603316,19.00189482,140.25,140.24,82.93]
[1740584603906,19.00189482,140.25,140.24,0.03]
[1740584604210,21.00189482,140.25,140.24,0.0001]
[1740584604631,19.00189482,140.25,140.24,0.0001]
[1740584604823,21.00189482,140.25,140.24,0.0001]
[1740584605210,39.65154368,140.25,140.24,0.0001]
[1740584605804,39.65154368,140.25,140.19,57.87610706]
[1740584605805,1.67715572,140.2,140.19,57.87610706]
[1740584606006,1.67715572,140.19,140.18,0.063]
[1740584607534,5.25376944,140.19,140.18,0.063]
[1740584608843,1.0,140.18,140.17,0.0012]
[1740584609021,1.67715572,140.18,140.17,0.0012]
[1740584610031,1.0,140.18,140.17,58.44595334]
[1740584610241,1.67715572,140.18,140.17,58.44595334]
[1740584610422,5.25376944,140.18,140.17,58.44595334]
[1740584610621,5.25376944,140.18,140.17,58.01946863]
[1740584610822,5.25376944,140.18,140.17,57.87730706]
[1740584611338,1.67715572,140.18,140.17,0.0012]
[1740584614057,1.0,140.16,140.15,32.84576256]
[1740584614547,1.67715572,140.16,140.15,32.84576256]
[1740584617724,1.67715572,140.16,140.15,169.61440884]
[1740584617949,1.67715572,140.16,140.15,169.18792413]
[1740584618550,1.67715572,140.16,140.15,169.61440884]
[1740584618763,1.0,140.16,140.15,188.2640577]
[1740584618951,1.67715572,140.16,140.15,169.61440884]
[1740584621535,0.67715572,140.15,140.14,0.063]
[1740584621733,2.67715572,140.15,140.14,0.063]
[1740584621935,1.67715572,140.15,140.14,0.063]
[1740584622743,1.0,140.15,140.14,136.83164628]
[1740584622931,1.0,140.15,140.14,1.70319527]
[1740584623126,1.67715572,140.15,140.14,1.70319527]
[1740584623332,1.67715572,140.15,140.14,0.063]
[1740584623963,2.67715572,140.15,140.14,0.063]
[1740584626164,1.67715572,140.15,140.14,0.063]
[1740584626759,2.67715572,140.15,140.14,0.063]
[1740584626959,1.67715572,140.15,140.14,0.063]
[1740584629150,1.67715572,140.15,140.14,33.47740884]
[1740584630269,1.67715572,140.15,140.14,33.05092413]
[1740584631271,1.67715572,140.15,140.14,32.90876256]
[1740584631961,1.67715572,140.15,140.14,33.05092413]
[1740584632331,1.67715572,140.15,140.14,32.90876256]
[1740584632962,1.67715572,140.15,140.14,33.05092413]
[1740584634951,1.67715572,140.15,140.14,32.90876256]
[1740584636854,1.67715572,140.15,140.14,34.97550207]
[1740584637445,1.67715572,140.15,140.14,33.05092413]
[1740584637646,1.67715572,140.15,140.14,33.47740884]
[1740584639580,1.67715572,140.15,140.14,34.97536767]
[1740584639747,1.0,140.15,140.14,34.97536767]
[1740584639947,1.67715572,140.15,140.14,34.97536767]
[1740584640142,1.063,140.15,140.14,34.97536767]
[1740584640357,1.74015572,140.15,140.14,34.97536767]
[1740584641558,1.063,140.15,140.14,34.97536767]
[1740584641872,0.063,140.15,140.14,198.37516081]
[1740584642079,0.063,140.18,140.17,20.56864628]
[1740584642271,0.063,140.18,140.17,22.06600744]
[1740584642678,0.063,140.18,140.17,29.20010744]
[1740584642862,0.063,140.18,140.17,198.24587]
[1740584643172,1.0,140.23,140.22,0.56864628]
[1740584643374,1.0,140.23,140.22,189.76088797]
[1740584643677,1.0,140.26,140.24,0.56864628]
[1740584643880,0.063,140.27,140.26,0.56864628]
[1740584644085,0.063,140.27,140.26,2.06506141]
[1740584644251,1.063,140.27,140.26,2.06506141]
[1740584644970,0.063,140.27,140.26,189.76047283]
[1740584645170,0.063,140.27,140.26,188.58690198]
[1740584646683,0.063,140.27,140.26,188.2640577]
[1740584646844,0.063,140.27,140.26,169.61440884]
[1740584647049,1.063,140.27,140.26,169.61440884]
[1740584647351,1.74015572,140.27,140.26,169.04576256]
[1740584647553,1.74015572,140.27,140.26,33.41440884]
[1740584647753,1.063,140.27,140.26,33.41440884]
[1740584648386,1.74015572,140.27,140.26,32.84576256]
[1740584648683,1.74015572,140.27,140.26,32.98792413]
[1740584649180,1.74015572,140.27,140.26,33.41440884]
[1740584650570,1.74015572,140.27,140.26,32.98792413]
[1740584650982,1.74015572,140.27,140.26,32.84576256]
[1740584651893,1.67715572,140.24,140.23,12.74076256]
[1740584652384,1.67715572,140.24,140.23,13.30940884]
[1740584653487,1.67715572,140.21,140.2,12.74076256]
[1740584654084,1.67715572,140.21,140.2,13.30940884]
[1740584655091,1.0,140.21,140.2,13.30940884]
[1740584655773,1.67715572,140.22,140.2,13.30940884]
[1740584655970,1.0,140.21,140.2,13.30940884]
[1740584657067,1.67715572,140.22,140.2,13.30940884]
[1740584657268,1.0,140.21,140.2,13.30940884]
[1740584657700,1.67715572,140.21,140.2,13.30940884]
[1740584657865,1.0,140.21,140.2,13.30940884]
[1740584658187,1.67715572,140.23,140.21,0.56864628]
[1740584658488,1.0,140.22,140.21,0.56864628]
[1740584658998,1.67715572,140.22,140.21,0.56864628]
[1740584659888,1.0,140.25,140.24,20.56864628]
[1740584660069,0.063,140.27,140.25,0.56864628]
[1740584660277,0.063,140.27,140.26,2.06500089]
[1740584660474,1.063,140.27,140.26,2.06500089]
[1740584661995,0.063,140.27,140.26,2.06500089]
[1740584662295,1.063,140.27,140.26,2.06500089]
[1740584662476,1.74015572,140.27,140.26,151.00576345]
[1740584662791,1.74015572,140.27,140.26,149.50940884]
[1740584664595,1.74015572,140.27,140.26,12.88292413]
[1740584668300,1.74015572,140.27,140.26,13.30940884]
[1740584668594,1.74015572,140.27,140.26,12.88292413]
[1740584668812,1.74015572,140.27,140.26,12.74076256]
[1740584668979,1.67715572,140.25,140.24,12.74076256]
[1740584670293,1.67715572,140.21,140.2,148.94076256]
[1740584670493,1.67715572,140.21,140.2,13.16724727]
[1740584670700,1.67715572,140.21,140.2,12.74076256]
[1740584674874,1.67715572,140.2,140.19,0.03]
[1740584677504,1.67715572,140.17,140.16,12.74076256]
[1740584678300,1.67715572,140.17,140.16,13.30940884]
[1740584678503,1.67715572,140.17,140.16,12.74076256]
[1740584678883,1.67715572,140.17,140.14,12.80376256]
[1740584678884,0.67715572,140.15,140.14,12.80376256]
[1740584679297,1.67715572,140.15,140.14,12.80376256]
[1740584681709,1.67715572,140.15,140.14,149.57240884]
[1740584681889,1.67715572,140.15,140.14,12.80376256]
[1740584684911,1.67715572,140.15,140.14,13.37240884]
[1740584686216,1.67715572,140.15,140.14,12.80376256]
[1740584687118,1.67715572,140.15,140.14,13.37240884]
[1740584687619,1.67715572,140.15,140.14,12.80376256]
[1740584691013,1.67715572,140.15,140.14,0.063]
[1740584696534,1.67715572,140.15,140.14,12.80376256]
[1740584697100,2.67715572,140.15,140.14,12.80376256]
[1740584699227,2.67715572,140.15,140.14,0.063]
[1740584701840,1.67715572,140.15,140.14,0.0001]
[1740584702035,2.67715572,140.15,140.14,0.0001]
[1740584703958,2.67715572,140.14,140.13,9.326e-05]
[1740584704155,2.67715572,140.1,140.06,0.03]
[1740584704448,1.67715572,140.07,140.06,0.03]
[1740584704830,1.67715572,140.07,140.06,0.0001]
[1740584705030,1.67715572,140.07,140.05,0.0001]
[1740584705031,2.67715572,140.07,140.05,0.0001]
[1740584705249,2.67715572,140.05,140.04,11.08217726]
[1740584705545,1.67715572,140.03,139.99,147.31217726]
[1740584705714,1.67715572,140.03,139.99,11.11217726]
[1740584706638,1.0,140.05,140.03,0.56864628]
[1740584706843,1.0,140.06,140.05,0.56864628]
[1740584707139,1.67715572,140.06,140.05,219.66864628]
[1740584707338,1.0,140.07,140.05,219.66864628]
[1740584707638,1.67715572,140.06,140.05,219.66864628]
[1740584707844,1.0,140.07,140.05,83.46864628]
[1740584708137,1.67715572,140.06,140.05,83.46864628]
[1740584708536,1.0,140.03,140.02,82.93]
[1740584709029,1.0,140.03,140.02,83.07216157]
[1740584709030,1.67715572,140.03,140.02,83.07216157]
[1740584709435,1.67715572,140.03,140.02,0.03]
[1740584711049,1.67715572,140.03,140.02,83.49864628]
[1740584711964,1.67715572,140.03,140.02,82.93]
[1740584713128,1.0,140.03,140.02,83.49864628]
[1740584713336,1.67715572,140.03,140.02,83.49864628]
[1740584713544,1.0,140.04,140.03,0.56864628]
[1740584713867,1.67715572,140.07,140.06,20.0]
[1740584714026,1.67715572,140.07,140.06,102.9]
[1740584714730,1.67715572,140.07,140.06,82.9]
[1740584715148,0.67715572,140.03,140.02,83.07216157]
[1740584715345,0.67715572,140.03,140.02,83.21432314]
[1740584715553,0.67715572,140.03,140.02,83.07216157]
[1740584715755,1.67715572,140.03,140.02,83.07216157]
[1740584715932,1.67715572,140.03,140.02,83.35648471]
[1740584716135,1.67715572,140.04,140.02,83.35648471]
[1740584716327,1.0,140.04,140.03,0.56864628]
[1740584716557,1.0,140.07,140.06,0.56864628]
[1740584716754,1.67715572,140.08,140.06,219.66864628]
[1740584716951,1.0,140.07,140.06,219.66864628]
[1740584717163,1.67715572,140.07,140.06,219.66864628]
[1740584717453,1.0,140.11,140.1,39.21829514]
[1740584717656,1.0,140.12,140.11,0.14216157]
[1740584717826,0.67715572,140.14,140.13,20.14216157]
[1740584717827,1.0,140.14,140.13,20.14216157]
[1740584718029,0.67715572,140.14,140.13,1.64012931]
[1740584718225,1.67715572,140.14,140.13,1.64012931]
[1740584718676,1.67715572,140.13,140.12,136.2]
[1740584718836,0.67715572,140.1,140.08,220.7075]
[1740584719155,1.0,140.06,140.05,219.1]
[1740584719330,1.0,140.06,140.05,219.66864628]
[1740584719525,1.67715572,140.06,140.05,82.9]
[1740584720151,1.0,140.12,140.04,137.8075]
[1740584720152,1.67715572,140.05,140.04,136.2]
[1740584720465,1.67715572,140.03,140.02,82.93]
[1740584720672,1.67715572,140.03,140.02,0.03]
[1740584720952,1.67715572,140.03,140.02,0.17216157]
[1740584721163,1.67715572,140.03,140.02,0.03]
[1740584723245,1.0,140.03,140.02,83.35648471]
[1740584723446,1.67715572,140.03,140.02,83.49864628]
[1740584723642,1.67715572,140.03,140.02,82.93]
[1740584724462,1.67715572,140.03,140.02,0.03]
[1740584724769,21.32680458,140.03,140.02,0.0001]
[1740584725158,1.67715572,140.0,139.99,0.03]
[1740584725650,1.67715572,140.0,139.92,84.5374]
[1740584725651,1.67715572,139.93,139.92,82.9]
[1740584725971,0.67715572,139.93,139.92,82.9]
[1740584726271,1.67715572,139.94,139.93,0.42648471]
[1740584726566,0.67715572,139.94,139.93,0.28432314]
[1740584726746,1.67715572,139.96,139.94,0.14216157]
[1740584726947,1.67715572,139.97,139.96,20.42648471]
[1740584727252,1.67715572,139.97,139.96,20.14216157]
[1740584728352,1.67715572,139.97,139.96,0.14216157]
[1740584729353,1.0,139.95,139.94,83.46864628]
[1740584729683,0.67715572,139.95,139.94,82.9]
[1740584729857,1.67715572,139.91,139.9,219.13]
[1740584730059,0.67715572,139.91,139.9,82.93]
[1740584730259,1.67715572,139.91,139.9,82.93]
[1740584730558,1.67715572,139.91,139.9,83.49864628]
[1740584730762,1.67715572,139.91,139.9,82.93]
[1740584731071,1.0,139.93,139.91,0.56864628]
[1740584731270,1.67715572,139.94,139.93,20.56864628]
[1740584731466,1.67715572,139.94,139.93,102.99864628]
[1740584731873,1.67715572,139.95,139.93,239.19864628]
[1740584732284,1.67715572,139.96,139.93,239.19864628]
[1740584732458,1.0,139.96,139.93,239.19864628]
[1740584732975,1.67715572,139.99,139.95,0.56864628]
[1740584733187,1.0,139.98,139.97,20.56864628]
[1740584733356,0.67715572,139.98,139.97,20.56864628]
[1740584733561,1.67715572,139.98,139.97,20.56864628]
[1740584733756,1.67715572,139.96,139.95,82.85648471]
[1740584734074,1.67715572,139.91,139.9,82.43]
[1740584734277,1.67715572,139.91,139.9,82.46]
[1740584734672,1.67715572,139.91,139.9,0.03]
[1740584735379,20.32680458,139.91,139.85,82.43]
[1740584735557,1.67715572,139.88,139.85,82.43]
[1740584735756,1.67715572,139.88,139.8,226.5518]
[1740584736185,1.67715572,139.88,139.83,20.0]
[1740584736675,1.67715572,139.88,139.84,20.0]
[1740584736876,1.67715572,139.88,139.87,0.59864628]
[1740584737062,1.67715572,139.89,139.88,0.56864628]
[1740584737266,1.67715572,139.9,139.88,82.99864628]
[1740584737471,1.67715572,139.91,139.9,20.14216157]
[1740584737776,0.67715572,139.92,139.91,0.56864628]
[1740584739081,1.67715572,139.92,139.91,0.42648471]
[1740584739272,0.67715572,139.9,139.89,82.43]
[1740584739467,1.67715572,139.9,139.89,82.43]
[1740584739666,1.67715572,139.88,139.87,82.88648471]
[1740584739973,1.67715572,139.88,139.87,82.46]
[1740584740177,1.67715572,139.88,139.87,82.88648471]
[1740584740361,1.67715572,139.88,139.87,83.02864628]
[1740584740569,1.67715572,139.88,139.87,82.88648471]
[1740584740885,1.67715572,139.88,139.87,83.02864628]
[1740584741072,1.0,139.9,139.89,20.56864628]
[1740584741267,1.67715572,139.93,139.91,20.56864628]
[1740584741469,1.67715572,139.94,139.93,20.56864628]
[1740584741672,1.67715572,139.94,139.93,102.99864628]
[1740584741986,1.67715572,139.94,139.93,82.85648471]
[1740584742980,0.67715572,139.92,139.91,218.63]
[1740584743187,0.67715572,139.92,139.91,219.19864628]
[1740584743575,1.67715572,139.93,139.92,0.14216157]
[1740584744081,1.67715572,139.94,139.93,20.56864628]
[1740584744284,1.67715572,139.97,139.94,20.56864628]
[1740584744474,1.67715572,139.97,139.96,20.42648471]
[1740584744783,1.67715572,139.97,139.96,20.56864628]
[1740584744983,1.67715572,139.97,139.96,0.56864628]
[1740584745171,1.67715572,139.95,139.94,219.19864628]
[1740584745905,1.67715572,139.95,139.94,218.77216157]
[1740584746103,1.67715572,139.95,139.94,82.57216157]
[1740584746267,1.67715572,139.95,139.94,82.43]
[1740584746816,1.67715572,139.95,139.94,82.99864628]
[1740584746982,1.0,139.95,139.94,219.19864628]
[1740584747310,1.67715572,139.96,139.95,0.14216157]
[1740584747877,0.67715572,139.96,139.95,0.14216157]
[1740584748488,0.67715572,139.96,139.95,82.57216157]
[1740584748785,1.67715572,139.96,139.95,82.57216157]
[1740584748992,1.67715572,139.96,139.95,82.43]
[1740584750517,1.67715572,139.96,139.95,82.57216157]
[1740584751902,1.0,139.98,139.97,20.0]
[1740584752111,1.0,139.99,139.98,0.56864628]
[1740584752415,0.67715572,140.0,139.98,2.06811336]
[1740584752797,1.67715572,139.99,139.98,0.56864628]
[1740584754109,0.67715572,139.99,139.98,0.56864628]
[1740584754420,1.67715572,139.99,139.98,0.56864628]
[1740584754784,0.67715572,139.98,139.97,102.43]
[1740584754989,1.67715572,139.95,139.94,218.77216157]
[1740584755229,3.84763636,140.02,139.94,218.77216157]
[1740584755230,0.67715572,139.98,139.95,0.14216157]
[1740584755514,1.67715572,139.98,139.97,20.42648471]
[1740584755930,0.67715572,139.98,139.97,20.42648471]
[1740584756100,1.67715572,139.98,139.97,20.42648471]
[1740584756455,1.67715572,139.96,139.95,219.05648471]
[1740584756719,1.67715572,139.96,139.95,219.19864628]
[1740584757110,1.67715572,139.96,139.95,218.91432314]
[1740584757623,1.67715572,139.96,139.95,219.05648471]
[1740584757797,1.67715572,139.96,139.95,82.43]
[1740584757987,1.67715572,139.94,139.93,82.43]
[1740584758424,1.67715572,139.91,139.9,82.46]
[1740584758896,1.67715572,139.91,139.9,82.60216157]
[1740584759101,1.67715572,139.91,139.9,82.46]
[1740584759521,1.67715572,139.91,139.9,83.02864628]
[1740584761023,1.0,139.93,139.92,0.56864628]
[1740584761531,1.67715572,139.94,139.93,0.14216157]
[1740584761825,1.67715572,139.94,139.93,82.43]
[1740584762429,1.0,139.94,139.93,82.85648471]
[1740584762613,1.0,139.94,139.93,136.76864628]
[1740584762991,1.0,139.95,139.94,0.56864628]
[1740584763412,1.67715572,139.95,139.94,0.42648471]
[1740584763616,1.67715572,139.94,139.93,136.62648471]
[1740584763821,1.67715572,139.94,139.93,82.9]
[1740584764836,1.67715572,139.92,139.91,82.9]
[1740584765803,1.67715572,139.92,139.91,83.46864628]
[1740584766230,1.67715572,139.92,139.91,83.18432314]
[1740584767226,1.67715572,139.93,139.92,0.56864628]
[1740584767397,0.063,139.96,139.95,20.56864628]
[1740584767605,1.063,139.96,139.95,241.16837337]
[1740584767903,0.063,139.96,139.95,239.66864628]
[1740584768138,1.0,140.0,139.99,0.28432314]
[1740584768431,1.0,140.0,139.99,220.59935151]
[1740584768432,1.67715572,140.0,139.99,220.59935151]
[1740584768738,1.67715572,140.0,139.99,219.66864628]
[1740584769218,1.67715572,140.0,139.99,219.52648471]
[1740584769416,1.67715572,140.0,139.99,82.9]
[1740584769809,1.67715572,140.0,139.99,83.46864628]
[1740584770220,1.67715572,140.0,139.99,83.18432314]
[1740584770411,1.67715572,140.0,139.99,82.9]
[1740584773041,1.0,140.01,140.0,0.42648471]
[1740584773213,1.0,140.01,140.0,0.56864628]
[1740584773751,1.0,140.01,140.0,219.66864628]
[1740584775109,1.0,140.02,140.01,0.14216157]
[1740584775317,1.67715572,140.01,140.0,219.1]
[1740584775512,1.67715572,140.01,140.0,219.24216157]
[1740584776251,1.0,140.01,140.0,219.66864628]
[1740584776535,1.0,140.02,140.01,0.14216157]
[1740584776841,1.0,140.02,140.01,219.24216157]
[1740584777043,1.67715572,140.03,140.02,0.42648471]
[1740584777207,1.67715572,140.03,140.02,83.32648471]
[1740584777405,1.063,140.04,140.03,0.14216157]
[1740584777632,0.063,140.04,140.03,238.31829514]
[1740584778045,0.063,140.04,140.03,245.78243942]
[1740584778221,1.74015572,140.09,140.07,0.56864628]
[1740584778416,0.063,140.09,140.07,219.66864628]
[1740584778734,0.063,140.09,140.08,2.0670057]
[1740584779156,1.063,140.09,140.08,2.0670057]
[1740584779621,0.063,140.09,140.08,20.71665456]
[1740584780024,0.063,140.09,140.08,2.0670057]
[1740584780330,0.063,140.09,140.08,240.13949884]
[1740584780641,0.063,140.09,140.08,245.23033942]
[1740584781852,0.063,140.09,140.08,244.90749514]
[1740584782029,1.74015572,140.09,140.08,82.9]
[1740584782349,1.063,140.09,140.08,82.9]
[1740584782546,0.063,140.09,140.08,238.31829514]
[1740584783532,0.063,140.09,140.08,238.64113942]
[1740584783933,0.063,140.09,140.08,244.51489514]
[1740584784645,0.063,140.1,140.09,19.54113942]
[1740584784831,0.063,140.1,140.09,45.36837182]
[1740584785456,1.063,140.15,140.14,0.56864628]
[1740584785657,1.063,140.15,140.14,221.16639116]
[1740584785950,1.063,140.15,140.14,219.66864628]
[1740584787141,1.063,140.15,140.14,238.31829514]
[1740584787339,1.063,140.19,140.17,20.0]
[1740584787537,0.063,140.19,140.18,20.82809514]
[1740584787741,0.063,140.19,140.18,247.06169514]
[1740584787942,0.063,140.19,140.18,247.38453942]
[1740584788149,1.0,140.23,140.22,39.21829514]
[1740584788351,1.0,140.23,140.22,259.81507426]
[1740584788654,1.0,140.23,140.22,239.66864628]
[1740584788854,0.063,140.24,140.23,19.21829514]
[1740584789070,0.063,140.24,140.23,240.1377357]
[1740584789240,0.063,140.24,140.23,238.31829514]
[1740584789660,1.063,140.24,140.23,238.31829514]
[1740584789865,0.063,140.24,140.23,238.31829514]
[1740584790067,0.063,140.24,140.23,245.77223942]
[1740584790272,0.063,140.27,140.26,0.89149056]
[1740584790437,0.063,140.27,140.26,240.07428181]
[1740584790759,0.063,140.27,140.26,238.57813942]
[1740584791765,0.063,140.27,140.26,238.25529514]
[1740584792261,0.063,140.27,140.26,245.70773942]
[1740584792451,0.063,140.27,140.26,238.57813942]
[1740584792637,0.063,140.27,140.26,238.25529514]
[1740584793148,0.063,140.27,140.26,245.70773942]
[1740584793341,0.063,140.27,140.26,247.0114407]
[1740584794361,0.063,140.27,140.26,239.8818407]
[1740584794565,0.063,140.27,140.26,247.0114407]
[1740584794758,0.063,140.27,140.26,239.8818407]
[1740584794943,0.063,140.27,140.26,247.0114407]
[1740584795339,0.063,140.3,140.29,20.0]
[1740584795554,0.063,140.33,140.32,39.54113942]
[1740584795753,0.063,140.33,140.32,260.07365733]
[1740584795956,0.063,140.33,140.32,258.57813942]
[1740584796273,0.063,140.33,140.32,258.25529514]
[1740584796453,1.74015572,140.33,140.32,82.837]
[1740584796970,1.67715572,140.27,140.26,219.037]
[1740584797281,0.67715572,140.23,140.22,219.037]
[1740584797447,1.67715572,140.23,140.22,82.837]
[1740584797647,1.67715572,140.23,140.22,83.12132314]
[1740584797879,1.0,140.24,140.23,0.28432314]
[1740584798046,1.0,140.24,140.23,219.60564628]
[1740584798242,1.0,140.25,140.24,0.28432314]
[1740584798460,1.0,140.26,140.25,19.21829514]
[1740584798770,1.0,140.27,140.26,0.56864628]
[1740584799342,1.0,140.28,140.27,0.28432314]
[1740584799559,1.0,140.28,140.27,0.56864628]
[1740584799763,1.67715572,140.28,140.27,0.56864628]
[1740584800065,1.0,140.28,140.27,219.60564628]
[1740584800656,1.67715572,140.28,140.27,219.60564628]
[1740584801164,1.0,140.28,140.27,238.25529514]
[1740584801467,1.0,140.28,140.27,219.60564628]
[1740584801668,1.67715572,140.28,140.27,82.837]
[1740584802249,1.0,140.24,140.23,219.037]
[1740584802569,1.67715572,140.24,140.23,219.037]
[1740584802865,1.0,140.24,140.23,219.17916157]
[1740584803085,1.0,140.25,140.24,0.14216157]
[1740584803270,1.0,140.26,140.25,0.56864628]
[1740584803647,1.0,140.27,140.26,0.28432314]
[1740584803854,1.0,140.27,140.26,220.81781923]
[1740584804154,1.0,140.27,140.26,219.32132314]
[1740584805289,1.0,140.28,140.27,0.56864628]
[1740584805576,1.0,140.31,140.3,0.28432314]
[1740584805746,1.0,140.31,140.3,220.81734522]
[1740584805946,1.0,140.31,140.3,219.32132314]
[1740584806249,1.67715572,140.31,140.3,82.837]
[1740584807447,1.67715572,140.31,140.3,83.12132314]
[1740584807777,1.67715572,140.28,140.27,221.10195394]
[1740584807956,1.67715572,140.28,140.27,219.60564628]
[1740584808155,1.67715572,140.28,140.27,241.10564628]
[1740584808349,1.0,140.28,140.27,238.25529514]
[1740584808558,1.67715572,140.28,140.27,219.17916157]
[1740584809276,1.67715572,140.28,140.27,82.837]
[1740584810005,0.063,140.33,140.28,82.837]
[1740584810182,1.0,140.46,140.42,1.0]
[1740584810388,1.0,140.44,140.43,0.56864628]
[1740584810577,1.0,140.43,140.42,83.26348471]
[1740584810762,1.0,140.43,140.42,219.46348471]
[1740584810967,1.0,140.43,140.42,219.17916157]
[1740584811168,1.0,140.43,140.42,219.46348471]
[1740584811380,1.0,140.43,140.37,18.64964886]
[1740584811381,1.0,140.4,140.39,0.14216157]
[1740584811671,1.0,140.4,140.39,219.60564628]
[1740584812067,0.03,140.47,140.39,219.60564628]
[1740584812068,1.0,140.41,140.4,0.42648471]
[1740584812798,1.0,140.42,140.41,20.56864628]
[1740584812984,1.0,140.44,140.43,0.42648471]
[1740584813178,1.0,140.41,140.4,0.14216157]
[1740584813374,1.0,140.41,140.4,219.24216157]
[1740584813574,1.0,140.41,140.4,219.52648471]
[1740584813798,1.0,140.41,140.4,219.1]
[1740584814097,1.0,140.41,140.4,82.9]
[1740584814501,1.0,140.41,140.4,83.46864628]
[1740584815172,1.0,140.41,140.4,219.66864628]
[1740584815481,1.0,140.41,140.4,219.1]